bitfinex/quotes_BTCUSD_20240627
["timestamp","ask_amount","ask_price","bid_price","bid_amount"]
[1719470607419,0.00122258,60779.0,60778.0,0.33634886]
[1719470607618,0.00122258,60779.0,60778.0,0.45444886]
[1719470609804,0.00122258,60779.0,60778.0,0.61898186]
[1719470610421,0.00122258,60779.0,60778.0,0.94804786]
[1719470610719,0.00122258,60779.0,60778.0,0.61898186]
[1719470611744,0.00122258,60779.0,60778.0,0.94804786]
[1719470611920,0.0937,60788.0,60787.0,0.01908588]
[1719470612133,0.258206,60788.0,60787.0,0.18142486]
[1719470612441,0.587218,60788.0,60787.0,0.18142486]
[1719470612654,0.96533092,60788.0,60787.0,0.18142486]
[1719470613426,0.63631892,60788.0,60787.0,0.18142486]
[1719470613841,0.63631892,60788.0,60787.0,0.18642486]
[1719470614244,0.63631892,60788.0,60787.0,0.19142486]
[1719470614448,0.96533092,60788.0,60787.0,0.19142486]
[1719470614766,0.63631892,60788.0,60787.0,0.19142486]
[1719470615602,0.587218,60788.0,60787.0,0.19142486]
[1719470617303,0.63635903,60788.0,60787.0,0.19142486]
[1719470617500,0.587218,60788.0,60787.0,0.19142486]
[1719470617704,0.66086939,60788.0,60787.0,0.19142486]
[1719470617900,0.587218,60788.0,60787.0,0.19142486]
[1719470618123,0.63636358,60788.0,60787.0,0.19142486]
[1719470618474,0.63636767,60788.0,60787.0,0.19142486]
[1719470618694,0.587218,60788.0,60787.0,0.19142486]
[1719470618916,0.66094239,60788.0,60787.0,0.19142486]
[1719470619050,0.587218,60788.0,60787.0,0.19142486]
[1719470619453,0.66094239,60788.0,60787.0,0.19142486]
[1719470619658,0.587218,60788.0,60787.0,0.19142486]
[1719470619862,0.15006469,60788.0,60787.0,0.19142486]
[1719470620103,0.26282305,60788.0,60787.0,0.19142486]
[1719470620246,0.164506,60788.0,60787.0,0.19142486]
[1719470623569,0.19030392,60788.0,60787.0,0.19142486]
[1719470623764,0.02579792,60788.0,60787.0,0.19142486]
[1719470625243,0.12413901,60788.0,60787.0,0.19142486]
[1719470625565,0.02579792,60788.0,60787.0,0.22442486]
[1719470625926,0.02579792,60788.0,60787.0,0.21442486]
[1719470630529,0.09955483,60788.0,60787.0,0.21442486]
[1719470631350,0.09957744,60788.0,60787.0,0.21442486]
[1719470631775,0.09960605,60788.0,60787.0,0.21442486]
[1719470633354,0.23440876,60788.0,60787.0,0.21442486]
[1719470634356,0.13599792,60788.0,60787.0,0.21442486]
[1719470635662,0.25900875,60788.0,60787.0,0.21442486]
[1719470636563,0.13599792,60788.0,60787.0,0.21442486]
[1719470636786,0.30050392,60788.0,60787.0,0.21442486]
[1719470636970,0.13599792,60788.0,60787.0,0.21442486]
[1719470637711,0.14889118,60788.0,60787.0,0.21442486]
[1719470640150,0.14889118,60788.0,60787.0,0.55344186]
[1719470640325,0.02579792,60788.0,60787.0,1.24556686]
[1719470640553,0.164484,60796.0,60787.0,1.24556686]
[1719470640554,0.275382,60797.0,60796.0,0.01]
[1719470640732,0.275382,60797.0,60796.0,0.18142486]
[1719470640945,0.604345,60797.0,60796.0,0.18142486]
[1719470641996,0.604345,60797.0,60796.0,0.16233898]
[1719470642202,0.72741706,60797.0,60796.0,0.18142486]
[1719470643103,0.72741437,60797.0,60796.0,0.18142486]
[1719470643535,0.72741437,60797.0,60796.0,0.19042486]
[1719470644179,0.604345,60797.0,60796.0,0.19042486]
[1719470645736,0.164482,60797.0,60796.0,0.19042486]
[1719470645945,0.26288595,60797.0,60796.0,0.17133898]
[1719470646603,0.26288595,60797.0,60796.0,0.19042486]
[1719470647048,0.26288595,60797.0,60796.0,0.19942486]
[1719470647248,0.164482,60797.0,60796.0,0.18033898]
[1719470647493,0.164482,60797.0,60796.0,0.19942486]
[1719470647927,0.164482,60797.0,60796.0,0.18033898]
[1719470648164,0.23826057,60797.0,60796.0,0.18033898]
[1719470648319,0.07377857,60797.0,60796.0,0.19942486]
[1719470649464,0.165319,60798.0,60796.0,0.19942486]
[1719470649465,0.00084,60798.0,60797.0,0.01908588]
[1719470649665,0.00084,60798.0,60797.0,0.18142486]
[1719470650101,0.00084,60798.0,60797.0,0.19142486]
[1719470650724,0.00084,60798.0,60797.0,0.19842486]
[1719470651613,0.00084,60798.0,60797.0,0.18842486]
[1719470652006,0.00084,60798.0,60797.0,0.20642486]
[1719470653285,0.07459988,60798.0,60797.0,0.20642486]
[1719470653484,0.00084,60798.0,60797.0,0.20642486]
[1719470654152,0.07459884,60798.0,60797.0,0.20642486]
[1719470655849,0.00084,60798.0,60797.0,0.20642486]
[1719470656051,0.07462417,60798.0,60797.0,0.20642486]
[1719470658094,0.07462417,60798.0,60797.0,0.17733898]
[1719470658461,0.07462417,60798.0,60797.0,0.20642486]
[1719470659085,0.07462417,60798.0,60797.0,1.02883186]
[1719470659086,0.07465174,60798.0,60797.0,1.02883186]
[1719470659290,0.00084,60798.0,60797.0,1.25823186]
[1719470660820,0.00084,60798.0,60797.0,1.38079486]
[1719470661034,0.00084,60798.0,60797.0,1.57482854]
[1719470661455,0.00084,60798.0,60797.0,1.57782854]
[1719470661875,0.00084,60798.0,60797.0,1.56682854]
[1719470662328,0.00084,60798.0,60797.0,1.59182854]
[1719470663029,0.00084,60798.0,60797.0,1.58082854]
[1719470663201,0.00084,60798.0,60797.0,1.59482854]
[1719470664457,0.00084,60798.0,60797.0,1.58082854]
[1719470664855,0.00084,60798.0,60797.0,1.59482854]
[1719470665262,0.00084,60798.0,60797.0,1.56682854]
[1719470665690,0.00084,60798.0,60797.0,1.59482854]
[1719470665896,0.00084,60798.0,60797.0,0.74330254]
[1719470666097,0.00084,60798.0,60797.0,0.73330254]
[1719470667184,0.00084,60798.0,60797.0,0.23985854]
[1719470667384,0.20294,60798.0,60797.0,0.23985854]
[1719470669408,0.696377,60798.0,60797.0,0.21685854]
[1719470669740,0.790077,60798.0,60797.0,0.20942486]
[1719470670143,1.119035,60798.0,60797.0,0.20942486]
[1719470670944,1.119035,60798.0,60797.0,0.19542486]
[1719470671894,1.1681953,60798.0,60797.0,0.19542486]
[1719470672282,1.119035,60798.0,60797.0,0.19542486]
[1719470672465,1.1681953,60798.0,60797.0,0.19542486]
[1719470672662,1.1681953,60798.0,60797.0,0.20942486]
[1719470674986,1.19278125,60798.0,60797.0,0.22342486]
[1719470675574,1.19278125,60798.0,60797.0,0.18142486]
[1719470675575,1.025335,60798.0,60797.0,0.18142486]
[1719470675813,1.119035,60798.0,60797.0,0.19542486]
[1719470676032,1.119035,60798.0,60797.0,0.20942486]
[1719470676970,1.19278125,60798.0,60797.0,0.20942486]
[1719470678010,1.025335,60798.0,60797.0,0.20942486]
[1719470678209,1.07451092,60798.0,60797.0,0.20942486]
[1719470678643,1.07450519,60798.0,60797.0,0.20942486]
[1719470680691,0.00084,60798.0,60797.0,0.35421707]
[1719470681261,0.00084,60798.0,60797.0,0.23981707]
[1719470681511,0.606377,60798.0,60797.0,0.23981707]
[1719470681711,0.277419,60798.0,60797.0,0.23981707]
[1719470681933,0.32660337,60798.0,60797.0,0.23981707]
[1719470682134,0.277419,60798.0,60797.0,0.23981707]
[1719470682335,0.606377,60798.0,60797.0,0.23981707]
[1719470682678,0.606377,60798.0,60797.0,0.23242486]
[1719470683909,0.68015356,60798.0,60797.0,0.23242486]
[1719470684431,0.606377,60798.0,60797.0,0.23980545]
[1719470684687,0.68017902,60798.0,60797.0,0.23242486]
[1719470684854,1.00913702,60798.0,60797.0,0.23242486]
[1719470685445,0.935335,60798.0,60797.0,0.23242486]
[1719470691403,0.5927151,60798.0,60797.0,0.23242486]
[1719470691603,0.5681081,60798.0,60797.0,0.23242486]
[1719470691806,1.1027661,60798.0,60797.0,0.23242486]
[1719470692023,1.028935,60798.0,60797.0,0.19033898]
[1719470692231,1.4563311,60798.0,60797.0,0.19033898]
[1719470692767,1.4563311,60798.0,60797.0,0.20942486]
[1719470692970,1.4563311,60798.0,60797.0,0.19033898]
[1719470693877,1.4563311,60798.0,60797.0,0.20942486]
[1719470693878,1.357893,60798.0,60797.0,0.20942486]
[1719470694872,1.12739226,60798.0,60797.0,0.19033898]
[1719470695226,1.38502931,60798.0,60797.0,0.19033898]
[1719470696905,1.71398731,60798.0,60797.0,0.028]
[1719470697103,1.7141135,60798.0,60797.0,0.028]
[1719470697621,1.71427629,60798.0,60797.0,0.028]
[1719470698220,1.71427629,60798.0,60797.0,0.014]
[1719470698427,1.71427638,60798.0,60797.0,0.014]
[1719470698602,1.71427638,60798.0,60797.0,0.018]
[1719470699191,1.41485226,60798.0,60797.0,0.018]
[1719470699599,2.40119225,60798.0,60797.0,0.018]
[1719470699816,2.40119225,60798.0,60797.0,0.004]
[1719470699817,2.41040907,60798.0,60797.0,0.004]
[1719470700205,2.41040907,60798.0,60778.0,0.000924]
[1719470700206,0.16453,60779.0,60778.0,0.000924]
[1719470700409,0.822652,60779.0,60778.0,0.16326298]
[1719470700630,0.822652,60779.0,60778.0,0.18234886]
[1719470700631,1.2501039,60779.0,60778.0,0.18234886]
[1719470701819,1.22547457,60779.0,60778.0,0.18234886]
[1719470702222,1.2501039,60779.0,60778.0,0.18234886]
[1719470702427,1.151713,60779.0,60778.0,0.18234886]
[1719470702671,1.2945645,60779.0,60778.0,0.18234886]
[1719470703179,1.2945645,60779.0,60778.0,0.17126298]
[1719470703180,1.245413,60779.0,60778.0,0.17126298]
[1719470703705,1.245413,60779.0,60778.0,0.17826298]
[1719470704067,1.245413,60779.0,60778.0,0.19734886]
[1719470704516,1.245413,60779.0,60778.0,0.17826298]
[1719470704723,1.64820125,60779.0,60778.0,0.015924]
[1719470704895,1.685674,60779.0,60778.0,0.015924]
[1719470705102,1.80859481,60779.0,60778.0,0.015924]
[1719470705355,1.78385097,60779.0,60778.0,0.015924]
[1719470705561,1.356613,60779.0,60778.0,0.015924]
[1719470705765,1.45479013,60779.0,60778.0,0.015924]
[1719470705971,1.356613,60779.0,60778.0,0.015924]
[1719470706144,1.45479146,60779.0,60778.0,0.015924]
[1719470706380,1.356613,60779.0,60778.0,0.015924]
[1719470707272,1.442613,60779.0,60778.0,0.015924]
[1719470707445,1.59357246,60779.0,60778.0,0.015924]
[1719470708325,1.79995647,60779.0,60778.0,0.015924]
[1719470708729,1.79996349,60779.0,60778.0,0.015924]
[1719470708930,1.79996349,60779.0,60778.0,0.000924]
[1719470709364,1.80196349,60779.0,60778.0,0.000924]
[1719470709596,1.90196349,60779.0,60778.0,0.000924]
[1719470709790,1.89996349,60779.0,60778.0,0.000924]
[1719470710224,1.90696349,60779.0,60778.0,0.001924]
[1719470710446,1.89996349,60779.0,60778.0,0.000924]
[1719470710859,1.90796349,60779.0,60778.0,0.001924]
[1719470711069,1.90896349,60779.0,60778.0,0.001924]
[1719470711446,2.03042928,60779.0,60778.0,0.001924]
[1719470711676,1.90796349,60779.0,60778.0,0.001924]
[1719470711800,2.0345526,60779.0,60778.0,0.002924]
[1719470712410,1.90408545,60779.0,60778.0,0.001924]
[1719470712607,1.90408545,60779.0,60778.0,0.00186962]
[1719470712835,1.91108545,60779.0,60778.0,0.00286962]
[1719470713236,2.00902709,60779.0,60778.0,0.00286962]
[1719470713439,1.882674,60779.0,60778.0,0.00286962]
[1719470714419,1.95611314,60779.0,60778.0,0.00286962]
[1719470714622,1.882674,60779.0,60778.0,0.00286962]
[1719470715543,1.93163555,60779.0,60778.0,0.00286962]
[1719470716092,1.882674,60779.0,60778.0,0.00286962]
[1719470717009,1.459913,60779.0,60778.0,0.00286962]
[1719470717208,1.553613,60779.0,60778.0,0.00286962]
[1719470717826,1.553613,60779.0,60778.0,0.00186962]
[1719470717827,1.546613,60779.0,60778.0,0.00186962]
[1719470718030,1.542613,60779.0,60778.0,0.00086962]
[1719470718239,1.874674,60779.0,60778.0,0.00186962]
[1719470718448,1.940596,60779.0,60778.0,0.00186962]
[1719470718881,2.36535762,60779.0,60778.0,0.00086962]
[1719470719100,2.59311598,60779.0,60778.0,0.00086962]
[1719470719282,2.59311598,60779.0,60767.0,0.000924]
[1719470719283,1.15192,60768.0,60767.0,0.000924]
[1719470719483,1.44822,60768.0,60767.0,0.000924]
[1719470719684,1.44816395,60768.0,60767.0,0.000924]
[1719470720758,1.35446395,60768.0,60767.0,0.000924]
[1719470720999,1.44816395,60768.0,60767.0,0.000924]
[1719470721875,1.44985518,60768.0,60767.0,0.000924]
[1719470722323,1.44785518,60768.0,60767.0,0.000924]
[1719470722771,1.45085518,60768.0,60767.0,0.000924]
[1719470723169,1.45485518,60768.0,60767.0,0.000924]
[1719470728077,1.36115518,60768.0,60767.0,0.000924]
[1719470728275,1.45485518,60768.0,60767.0,0.000924]
[1719470732800,1.78397518,60768.0,60767.0,0.000924]
[1719470733036,1.8107763,60768.0,60767.0,0.000924]
[1719470733774,1.78397518,60768.0,60767.0,0.000924]
[1719470734512,1.81037872,60768.0,60767.0,0.000924]
[1719470734789,1.78397518,60768.0,60767.0,0.000924]
[1719470735026,1.78481518,60768.0,60767.0,0.000924]
[1719470737899,1.45569518,60768.0,60767.0,0.000924]
[1719470739595,1.48178612,60768.0,60767.0,0.000924]
[1719470740096,1.48170719,60768.0,60767.0,0.000924]
[1719470743003,1.50469571,60768.0,60767.0,0.000924]
[1719470743264,1.55521544,60768.0,60767.0,0.000924]
[1719470743514,1.45569518,60768.0,60767.0,0.000924]
[1719470743787,1.55534745,60768.0,60767.0,0.000924]
[1719470744241,1.48171459,60768.0,60767.0,0.000924]
[1719470745120,1.91083459,60768.0,60767.0,0.000924]
[1719470746937,2.43550728,60768.0,60767.0,0.000924]
[1719470747147,2.43550728,60768.0,60752.0,0.009218]
[1719470747148,1.152203,60753.0,60752.0,0.009218]
[1719470747369,1.245903,60753.0,60752.0,0.009218]
[1719470747576,1.32093873,60753.0,60752.0,0.009218]
[1719470747749,1.2718255,60753.0,60752.0,0.009218]
[1719470748207,1.34550764,60753.0,60752.0,0.009218]
[1719470748724,1.2718255,60753.0,60752.0,0.009218]
[1719470748932,1.34551177,60753.0,60752.0,0.009218]
[1719470749139,1.37106836,60753.0,60752.0,0.009218]
[1719470749552,1.37215101,60753.0,60752.0,0.009218]
[1719470750182,1.37388309,60753.0,60752.0,0.009218]
[1719470750384,1.49672753,60753.0,60752.0,0.009218]
[1719470750665,1.37388309,60753.0,60752.0,0.009218]
[1719470751633,1.49671281,60753.0,60752.0,0.009218]
[1719470751971,1.37388309,60753.0,60752.0,0.009218]
[1719470752094,1.49671281,60753.0,60752.0,0.009218]
[1719470752293,1.37388309,60753.0,60752.0,0.096318]
[1719470752536,1.49671281,60753.0,60752.0,0.096318]
[1719470752733,1.37388309,60753.0,60752.0,0.096318]
[1719470753141,1.346903,60753.0,60752.0,0.096318]
[1719470753316,1.37351554,60753.0,60752.0,0.096318]
[1719470753914,0.95061454,60753.0,60752.0,0.11540388]
[1719470754088,0.917702,60753.0,60752.0,0.11540388]
[1719470754285,1.01597171,60753.0,60752.0,0.11540388]
[1719470754521,0.99140749,60753.0,60752.0,0.22720388]
[1719470754848,0.89770749,60753.0,60752.0,0.22720388]
[1719470755064,0.05214022,60753.0,60752.0,0.38954286]
[1719470755476,0.05214022,60753.0,60752.0,1.01005286]
[1719470755477,0.003,60753.0,60752.0,1.01005286]
[1719470755703,0.003,60753.0,60752.0,0.68084586]
[1719470755973,0.001,60753.0,60752.0,0.68084586]
[1719470756394,0.001,60753.0,60752.0,0.59645448]
[1719470757021,0.164582,60760.0,60759.0,0.2111]
[1719470757228,0.04914575,60762.0,60761.0,0.13368588]
[1719470757428,0.07371862,60763.0,60762.0,0.01908588]
[1719470757429,0.04914575,60763.0,60762.0,0.01908588]
[1719470757634,0.07371862,60765.0,60763.0,0.2032]
[1719470757635,0.04914575,60764.0,60763.0,0.2032]
[1719470757846,0.04914575,60764.0,60763.0,0.38462486]
[1719470758054,0.04914575,60764.0,60763.0,0.39206079]
[1719470758266,0.23828962,60764.0,60763.0,0.39206079]
[1719470758876,0.164571,60764.0,60763.0,0.39206079]
[1719470759082,0.23829868,60764.0,60763.0,0.39206079]
[1719470759284,0.23829863,60764.0,60763.0,0.39206079]
[1719470759487,0.23829863,60764.0,60763.0,0.38462486]
[1719470759905,0.23829863,60764.0,60763.0,0.38962486]
[1719470760110,0.23829863,60764.0,60763.0,0.39706079]
[1719470760937,0.56744063,60764.0,60763.0,0.37797491]
[1719470761153,0.493713,60764.0,60763.0,0.37797491]
[1719470761361,0.164571,60764.0,60763.0,0.39706079]
[1719470761537,0.164571,60764.0,60763.0,0.40206079]
[1719470761981,0.16426205,60764.0,60763.0,0.40206079]
[1719470762206,0.16426205,60764.0,60763.0,0.39706079]
[1719470762420,0.493713,60764.0,60763.0,0.01243593]
[1719470762632,1.020855,60764.0,60763.0,0.01443593]
[1719470762873,1.349997,60764.0,60763.0,0.00943593]
[1719470763077,1.349997,60764.0,60763.0,0.002]
[1719470763078,1.37610436,60764.0,60763.0,0.002]
[1719470763285,1.37610436,60764.0,60763.0,0.003]
[1719470763987,1.37610436,60764.0,60763.0,0.002]
[1719470764375,1.37610436,60764.0,60763.0,0.10738588]
[1719470764376,0.51982036,60764.0,60763.0,0.10738588]
[1719470764592,0.822855,60764.0,60763.0,0.0883]
[1719470764795,0.822855,60764.0,60763.0,0.10738588]
[1719470765626,0.822855,60764.0,60763.0,0.11038588]
[1719470765831,0.822855,60764.0,60763.0,0.10838588]
[1719470766230,0.822855,60764.0,60763.0,0.0863]
[1719470766434,0.822855,60764.0,60763.0,0.10538588]
[1719470766719,0.822855,60764.0,60763.0,0.10738588]
[1719470766937,0.822855,60764.0,60763.0,0.10838588]
[1719470767560,0.822855,60764.0,60763.0,0.10638588]
[1719470767763,0.822855,60764.0,60763.0,0.0873]
[1719470768341,0.822855,60764.0,60763.0,0.10638588]
[1719470768943,0.822855,60764.0,60763.0,0.10538588]
[1719470769410,0.94565522,60764.0,60763.0,0.0883]
[1719470769551,0.822855,60764.0,60763.0,0.0883]
[1719470769923,0.94565522,60764.0,60763.0,0.10638588]
[1719470770158,0.61651322,60764.0,60763.0,0.10638588]
[1719470770399,0.61651322,60764.0,60763.0,0.27072486]
[1719470770400,0.12280022,60764.0,60763.0,0.27072486]
[1719470770616,0.01134,60767.0,60763.0,0.27072486]
[1719470770617,0.164568,60765.0,60764.0,0.01908588]
[1719470770840,0.01134,60767.0,60766.0,0.01908588]
[1719470770841,0.08501714,60767.0,60766.0,0.01908588]
[1719470771051,0.01134,60767.0,60766.0,0.26762486]
[1719470771272,0.06045921,60767.0,60766.0,0.27504842]
[1719470772197,0.01134,60767.0,60766.0,0.27504842]
[1719470772465,0.175903,60767.0,60766.0,0.27504842]
[1719470772663,0.22502221,60767.0,60766.0,0.26762486]
[1719470772871,0.175903,60767.0,60766.0,0.26762486]
[1719470773063,0.01134,60767.0,60766.0,0.27504842]
[1719470773277,0.01134,60767.0,60766.0,0.28504842]
[1719470773481,0.01134,60767.0,60766.0,0.55771342]
[1719470773795,0.01134,60767.0,60766.0,0.90984442]
[1719470774110,0.01134,60767.0,60766.0,0.58071342]
[1719470774515,0.01134,60767.0,60766.0,0.57071342]
[1719470774919,0.01434,60767.0,60766.0,0.58071342]
[1719470775126,0.01634,60767.0,60766.0,0.58071342]
[1719470775812,0.01334,60767.0,60766.0,0.58071342]
[1719470776015,0.01334,60767.0,60766.0,0.58471342]
[1719470777680,0.01334,60767.0,60766.0,1.24297542]
[1719470777892,0.01134,60767.0,60766.0,1.24297542]
[1719470778064,0.01134,60767.0,60766.0,1.24697542]
[1719470779124,0.01134,60767.0,60766.0,0.91784442]
[1719470779908,0.01134,60767.0,60766.0,1.44697542]
[1719470780801,0.01134,60767.0,60766.0,1.24697542]
[1719470781007,0.01134,60767.0,60766.0,1.44697542]
[1719470781215,0.01134,60767.0,60766.0,1.24697542]
[1719470783324,0.01134,60767.0,60766.0,0.41414842]
[1719470784488,0.01134,60767.0,60766.0,0.19684842]
[1719470784489,0.175903,60767.0,60766.0,0.19684842]
[1719470784719,0.10514,60767.0,60766.0,0.19684842]
[1719470785120,0.10514,60767.0,60766.0,0.18942486]
[1719470786526,0.269703,60767.0,60766.0,0.18942486]
[1719470786731,0.175903,60767.0,60766.0,0.18942486]
[1719470788980,0.01134,60767.0,60766.0,0.18942486]
[1719470789577,0.01134,60767.0,60766.0,0.40742486]
[1719470789782,0.01134,60767.0,60766.0,0.41742486]
[1719470790868,0.01134,60767.0,60766.0,0.30812486]
[1719470791035,0.01134,60767.0,60766.0,0.21242486]
[1719470792412,0.01134,60767.0,60766.0,0.008]
[1719470792413,0.834155,60767.0,60766.0,0.008]
[1719470792606,1.10796828,60767.0,60766.0,0.008]
[1719470792812,1.05896889,60767.0,60766.0,0.008]
[1719470793047,1.10796788,60767.0,60766.0,0.008]
[1719470793262,1.05896889,60767.0,60766.0,0.008]
[1719470793461,1.13246798,60767.0,60766.0,0.004]
[1719470793869,0.64477898,60767.0,60761.0,0.01908588]
[1719470794044,0.493729,60762.0,60761.0,0.01908588]
[1719470796295,0.493729,60762.0,60761.0,0.18142486]
[1719470796497,0.329185,60756.0,60755.0,0.01908588]
[1719470796701,0.329185,60756.0,60755.0,0.16233898]
[1719470796702,1.009262,60756.0,60755.0,0.16233898]
[1719470797039,1.0582859,60756.0,60755.0,0.16233898]
[1719470797366,1.009262,60756.0,60755.0,0.16233898]
[1719470797571,0.823002,60753.0,60752.0,0.009218]
[1719470797786,0.89653785,60753.0,60752.0,0.009218]
[1719470798149,1.22573885,60753.0,60752.0,0.009218]
[1719470798481,1.152203,60753.0,60752.0,0.009218]
[1719470799249,1.154203,60753.0,60752.0,0.009218]
[1719470800674,1.152203,60753.0,60752.0,0.009218]
[1719470801351,1.22671416,60753.0,60752.0,0.009218]
[1719470801777,1.22571416,60753.0,60752.0,0.009218]
[1719470802003,1.22571818,60753.0,60752.0,0.009218]
[1719470802211,1.22671818,60753.0,60752.0,0.009218]
[1719470802331,1.22771818,60753.0,60752.0,0.022218]
[1719470802747,1.20220312,60753.0,60752.0,0.009218]
[1719470803154,1.20320312,60753.0,60752.0,0.009218]
[1719470803852,1.20320312,60753.0,60752.0,0.02830388]
[1719470804078,1.154203,60753.0,60752.0,0.02830388]
[1719470807031,1.70046946,60753.0,60752.0,0.009218]
[1719470807225,1.67462324,60753.0,60752.0,0.009218]
[1719470807681,1.576603,60753.0,60752.0,0.009218]
[1719470807829,1.575603,60753.0,60752.0,0.009218]
[1719470808033,1.67356375,60753.0,60752.0,0.009218]
[1719470808238,1.6805583,60753.0,60752.0,0.010218]
[1719470808667,1.67354344,60753.0,60752.0,0.009218]
[1719470809080,1.68254344,60753.0,60752.0,0.010218]
[1719470809527,1.67254344,60753.0,60752.0,0.009218]
[1719470809939,1.67854344,60753.0,60752.0,0.009218]
[1719470810272,1.581603,60753.0,60752.0,0.010218]
[1719470810631,1.581603,60753.0,60752.0,0.011218]
[1719470810852,1.589603,60753.0,60752.0,0.011218]
[1719470811275,1.66301155,60753.0,60752.0,0.011218]
[1719470811705,1.99221255,60753.0,60752.0,0.011218]
[1719470811908,2.20788677,60753.0,60752.0,0.011218]
[1719470812122,2.20088677,60753.0,60752.0,0.010218]
[1719470812523,2.03855306,60753.0,60752.0,0.010218]
[1719470812796,2.04755306,60753.0,60752.0,0.011218]
[1719470813262,2.12093139,60753.0,60752.0,0.011218]
[1719470814255,2.04755306,60753.0,60752.0,0.011218]
[1719470814700,2.04737705,60753.0,60752.0,0.011218]
[1719470815328,2.09628002,60753.0,60752.0,0.011218]
[1719470816430,2.07333798,60753.0,60752.0,0.011218]
[1719470817852,2.07385925,60753.0,60752.0,0.011218]
[1719470818210,2.04676493,60753.0,60752.0,0.011218]
[1719470818411,2.07385513,60753.0,60752.0,0.011218]
[1719470818680,1.83935513,60753.0,60752.0,0.011218]
[1719470818882,1.38906393,60753.0,60752.0,0.011218]
[1719470819209,1.41613481,60753.0,60752.0,0.011218]
[1719470819405,1.38906393,60753.0,60752.0,0.011218]
[1719470819617,1.41660399,60753.0,60752.0,0.011218]
[1719470819808,1.38906393,60753.0,60752.0,0.011218]
[1719470820363,1.41660386,60753.0,60752.0,0.011218]
[1719470820575,1.76593757,60753.0,60752.0,0.011218]
[1719470820776,1.96593757,60753.0,60752.0,0.011218]
[1719470820909,2.03924439,60753.0,60752.0,0.011218]
[1719470821129,2.392881,60753.0,60752.0,0.011218]
[1719470821335,2.29513857,60753.0,60752.0,0.011218]
[1719470821531,2.39286578,60753.0,60752.0,0.011218]
[1719470821737,2.19286578,60753.0,60752.0,0.011218]
[1719470821939,2.39286578,60753.0,60752.0,0.011218]
[1719470822363,2.29513857,60753.0,60752.0,0.011218]
[1719470822604,2.13280486,60753.0,60752.0,0.011218]
[1719470822781,2.27360486,60753.0,60752.0,0.011218]
[1719470822984,2.37133207,60753.0,60752.0,0.011218]
[1719470823212,2.27360486,60753.0,60752.0,0.011218]
[1719470823416,2.24606493,60753.0,60752.0,0.011218]
[1719470823627,2.79900877,60753.0,60752.0,0.011218]
[1719470823859,2.89672631,60753.0,60752.0,0.011218]
[1719470824153,2.69672631,60753.0,60752.0,0.011218]
[1719470824496,2.79900877,60753.0,60752.0,0.011218]
[1719470825132,2.89672631,60753.0,60752.0,0.011218]
[1719470825333,2.79900877,60753.0,60752.0,0.011218]
[1719470825536,2.43667506,60753.0,60752.0,0.011218]
[1719470826343,2.51195593,60753.0,60752.0,0.011218]
[1719470826548,2.51139835,60753.0,60752.0,0.011218]
[1719470826962,2.51131644,60753.0,60752.0,0.011218]
[1719470827165,2.60904561,60753.0,60752.0,0.011218]
[1719470827423,2.72458551,60753.0,60752.0,0.011218]
[1719470828220,2.64934288,60753.0,60752.0,0.011218]
[1719470828971,2.6493788,60753.0,60752.0,0.011218]
[1719470829183,2.5338389,60753.0,60752.0,0.011218]
[1719470829783,2.53391963,60753.0,60752.0,0.011218]
[1719470829998,2.73391963,60753.0,60752.0,0.011218]
[1719470830172,2.53391963,60753.0,60752.0,0.011218]
[1719470830379,2.73391963,60753.0,60752.0,0.011218]
[1719470830547,2.80824519,60753.0,60752.0,0.011218]
[1719470830997,2.60824519,60753.0,60752.0,0.011218]
[1719470831198,2.51045559,60753.0,60752.0,0.011218]
[1719470831601,2.51045559,60753.0,60733.0,0.009218]
[1719470831602,1.00676,60734.0,60733.0,0.009218]
[1719470831903,1.04888612,60734.0,60733.0,0.009218]
[1719470832111,0.95098612,60734.0,60733.0,0.009218]
[1719470832339,1.46219012,60734.0,60733.0,0.009218]
[1719470833043,1.46252514,60734.0,60733.0,0.009218]
[1719470833317,1.434464,60734.0,60733.0,0.009218]
[1719470834894,1.434464,60734.0,60733.0,0.010218]
[1719470835096,1.443464,60734.0,60733.0,0.010218]
[1719470835519,1.434464,60734.0,60733.0,0.009218]
[1719470835980,1.448464,60734.0,60733.0,0.010218]
[1719470836528,1.434464,60734.0,60733.0,0.009218]
[1719470836734,1.434464,60734.0,60733.0,0.010218]
[1719470836735,1.70623116,60734.0,60733.0,0.010218]
[1719470836926,1.53233116,60734.0,60733.0,0.011218]
[1719470837365,1.504264,60734.0,60733.0,0.011218]
[1719470839048,1.487264,60734.0,60733.0,0.009218]
[1719470839492,1.501264,60734.0,60733.0,0.009218]
[1719470839905,1.515264,60734.0,60733.0,0.010218]
[1719470840108,1.501264,60734.0,60733.0,0.010218]
[1719470840484,1.496264,60734.0,60733.0,0.009218]
[1719470840923,1.487264,60734.0,60733.0,0.009218]
[1719470841348,1.52362011,60734.0,60733.0,0.02930388]
[1719470841551,1.52362011,60734.0,60733.0,0.11010388]
[1719470841552,0.93126,60734.0,60733.0,0.11010388]
[1719470843303,0.94526,60734.0,60733.0,0.11110388]
[1719470843459,0.94526,60734.0,60733.0,0.092018]
[1719470843663,0.93126,60734.0,60733.0,0.091018]
[1719470843870,0.93126,60734.0,60733.0,0.11010388]
[1719470844071,0.94026,60734.0,60733.0,0.11110388]
[1719470844771,1.03416,60734.0,60733.0,0.11110388]
[1719470846646,1.08315859,60734.0,60733.0,0.11110388]
[1719470848215,1.08315859,60734.0,60733.0,0.092018]
[1719470848654,1.08315859,60734.0,60733.0,0.011218]
[1719470849441,1.11178571,60734.0,60733.0,0.011218]
[1719470850733,1.14661824,60734.0,60733.0,0.011218]
[1719470851170,1.06899253,60734.0,60733.0,0.011218]
[1719470853950,1.17459253,60734.0,60733.0,0.011218]
[1719470854175,1.50389653,60734.0,60733.0,0.011218]
[1719470854402,1.25789253,60734.0,60733.0,0.011218]
[1719470856258,1.58719653,60734.0,60733.0,0.011218]
[1719470862985,1.58803653,60734.0,60733.0,0.011218]
[1719470865283,1.6912824,60734.0,60733.0,0.011218]
[1719470866330,1.85713733,60734.0,60733.0,0.011218]
[1719470867606,1.85767143,60734.0,60733.0,0.011218]
[1719470868288,1.69182213,60734.0,60733.0,0.011218]
[1719470868514,2.02112613,60734.0,60733.0,0.011218]
[1719470870604,2.58346511,60734.0,60733.0,0.011218]